[Event "Late-Titled-Tuesday-Blitz-July-09-2024"]
[Site "Chess.com"]
[Date "2024.07.09"]
[Round "7"]
[White "schondeln"]
[Black "Bob_2004"]
[Result "1-0"]
[WhiteElo "2359"]
[BlackElo "2648"]
[TimeControl "180+1"]
[EndTime "15:15:56 PDT"]
[Termination "schondeln won by checkmate"]

1. e4 {[%clk 0:03:00.9]} 1... c5 {[%clk 0:03:00.3]} 2. Nf3 {[%clk 0:03:00.5]}
2... d6 {[%clk 0:03:00.6]} 3. Bc4 {[%clk 0:03:00.2]} 3... Nf6 {[%clk 0:03:00.5]}
4. d3 {[%clk 0:03:00.2]} 4... e6 {[%clk 0:02:59.8]} 5. O-O {[%clk 0:02:59.9]}
5... Be7 {[%clk 0:02:59.8]} 6. Bb3 {[%clk 0:02:59.5]} 6... O-O {[%clk
0:03:00.2]} 7. Re1 {[%clk 0:02:59.3]} 7... Nc6 {[%clk 0:02:59.9]} 8. c3 {[%clk
0:02:59.6]} 8... d5 {[%clk 0:02:54]} 9. Nbd2 {[%clk 0:02:58.8]} 9... b5 {[%clk
0:02:51.1]} 10. Bc2 {[%clk 0:02:55.6]} 10... a5 {[%clk 0:02:50.1]} 11. Qe2
{[%clk 0:02:54.6]} 11... b4 {[%clk 0:02:49]} 12. Ba4 {[%clk 0:02:48.3]} 12...
Bb7 {[%clk 0:02:44.8]} 13. h3 {[%clk 0:02:33.4]} 13... Rc8 {[%clk 0:02:41.6]}
14. Nf1 {[%clk 0:02:31.5]} 14... Ba6 {[%clk 0:02:33.9]} 15. e5 {[%clk
0:02:24.4]} 15... Nd7 {[%clk 0:02:30.7]} 16. Ng3 {[%clk 0:02:22.3]} 16... Nb6
{[%clk 0:02:17.7]} 17. Bxc6 {[%clk 0:02:19.8]} 17... Rxc6 {[%clk 0:02:18.6]} 18.
Bf4 {[%clk 0:02:10.4]} 18... Na4 {[%clk 0:02:14.2]} 19. Qd2 {[%clk 0:02:07.5]}
19... bxc3 {[%clk 0:02:08]} 20. bxc3 {[%clk 0:02:07.4]} 20... Rb6 {[%clk
0:02:07.6]} 21. Rab1 {[%clk 0:01:59.2]} 21... Qb8 {[%clk 0:02:05.3]} 22. Qc2
{[%clk 0:01:57.1]} 22... Nb2 {[%clk 0:01:45.8]} 23. Re3 {[%clk 0:01:40.1]} 23...
c4 {[%clk 0:01:44.7]} 24. d4 {[%clk 0:01:36.2]} 24... Nd3 {[%clk 0:01:43.4]} 25.
Rxb6 {[%clk 0:01:36.1]} 25... Qxb6 {[%clk 0:01:44.3]} 26. Bg5 {[%clk 0:01:36.4]}
26... Bxg5 {[%clk 0:01:40.2]} 27. Nxg5 {[%clk 0:01:36.1]} 27... h6 {[%clk
0:01:41.1]} 28. Nf3 {[%clk 0:01:26.6]} 28... Rb8 {[%clk 0:01:41.5]} 29. Kh2
{[%clk 0:01:18.1]} 29... Qb1 {[%clk 0:01:35.7]} 30. Qe2 {[%clk 0:01:17.5]} 30...
Rb2 {[%clk 0:01:32.4]} 31. Nd2 {[%clk 0:01:17.7]} 31... Qxa2 {[%clk 0:01:31.7]}
32. Ngf1 {[%clk 0:01:16.6]} 32... Rc2 {[%clk 0:01:15.2]} 33. Rg3 {[%clk
0:01:16.1]} 33... Rxc3 {[%clk 0:01:12.7]} 34. Qg4 {[%clk 0:01:10.7]} 34... g6
{[%clk 0:01:13]} 35. Qh4 {[%clk 0:01:00.8]} 35... Qa3 {[%clk 0:01:04.9]} 36.
Qxh6 {[%clk 0:00:58.2]} 36... Qf8 {[%clk 0:01:04.6]} 37. Qg5 {[%clk 0:00:52.9]}
37... a4 {[%clk 0:00:50.1]} 38. h4 {[%clk 0:00:52.7]} 38... Kh7 {[%clk
0:00:30.1]} 39. h5 {[%clk 0:00:50.8]} 39... Qh6 {[%clk 0:00:29.6]} 40. Qf6
{[%clk 0:00:48]} 40... Qxh5+ {[%clk 0:00:28.4]} 41. Rh3 {[%clk 0:00:47.6]} 41...
Qxh3+ {[%clk 0:00:28.6]} 42. gxh3 {[%clk 0:00:47.2]} 42... a3 {[%clk 0:00:26.7]}
43. Qxf7+ {[%clk 0:00:47]} 43... Kh6 {[%clk 0:00:24.3]} 44. Qf8+ {[%clk
0:00:45.3]} 44... Kh7 {[%clk 0:00:23.2]} 45. Nf3 {[%clk 0:00:44.2]} 45... Nxf2
{[%clk 0:00:19.3]} 46. Ng5# {[%clk 0:00:43.3]} 1-0

[Event "Late-Titled-Tuesday-Blitz-July-09-2024"]
[Site "Chess.com"]
[Date "2024.07.09"]
[Round "7"]
[White "MikeSailer"]
[Black "AlphaPerseii"]
[Result "0-1"]
[WhiteElo "2101"]
[BlackElo "2380"]
[TimeControl "180+1"]
[EndTime "15:15:56 PDT"]
[Termination "AlphaPerseii won by resignation"]

1. d4 {[%clk 0:03:00.2]} 1... Nf6 {[%clk 0:02:59.8]} 2. Nf3 {[%clk 0:02:58.1]}
2... d5 {[%clk 0:02:59.8]} 3. Bf4 {[%clk 0:02:57.5]} 3... c5 {[%clk 0:03:00.1]}
4. e3 {[%clk 0:02:57.6]} 4... Nc6 {[%clk 0:03:00.1]} 5. c3 {[%clk 0:02:55.8]}
5... Bg4 {[%clk 0:02:55.5]} 6. Nbd2 {[%clk 0:02:53.2]} 6... h6 {[%clk
0:02:46.5]} 7. h3 {[%clk 0:02:51.3]} 7... Bh5 {[%clk 0:02:45.4]} 8. Bd3 {[%clk
0:02:51.7]} 8... g5 {[%clk 0:02:26.7]} 9. Bh2 {[%clk 0:02:47.7]} 9... g4 {[%clk
0:02:27.1]} 10. hxg4 {[%clk 0:02:41.8]} 10... Bxg4 {[%clk 0:02:28]} 11. Qc2
{[%clk 0:02:21.3]} 11... e6 {[%clk 0:02:22.3]} 12. Ne5 {[%clk 0:02:03.8]} 12...
Nxe5 {[%clk 0:01:39.9]} 13. Bxe5 {[%clk 0:02:00.2]} 13... c4 {[%clk 0:01:35.6]}
14. Bxf6 {[%clk 0:01:35.9]} 14... Qxf6 {[%clk 0:01:25.7]} 15. Qa4+ {[%clk
0:01:35.7]} 15... Kd8 {[%clk 0:01:21.4]} 16. Bxc4 {[%clk 0:01:08.3]} 16... dxc4
{[%clk 0:01:19.7]} 17. Nxc4 {[%clk 0:01:07.9]} 17... Kc7 {[%clk 0:00:56.3]} 18.
Qa5+ {[%clk 0:00:58.3]} 18... Kc8 {[%clk 0:00:47.5]} 19. Nb6+ {[%clk 0:00:56.6]}
19... axb6 {[%clk 0:00:46.5]} 20. Qxa8+ {[%clk 0:00:56.7]} 20... Kc7 {[%clk
0:00:47.4]} 21. Qa4 {[%clk 0:00:43.4]} 21... Bf5 {[%clk 0:00:46.7]} 22. O-O-O
{[%clk 0:00:31.9]} 22... Be7 {[%clk 0:00:39.7]} 23. b3 {[%clk 0:00:25.3]} 23...
Be4 {[%clk 0:00:34.8]} 24. f3 {[%clk 0:00:24.1]} 24... Bc6 {[%clk 0:00:34.9]}
25. Qc4 {[%clk 0:00:23.9]} 25... Qg5 {[%clk 0:00:35.3]} 26. Qe2 {[%clk
0:00:21.8]} 26... Ra8 {[%clk 0:00:31.4]} 27. a4 {[%clk 0:00:20.2]} 27... b5
{[%clk 0:00:21.4]} 28. axb5 {[%clk 0:00:20.2]} 28... Bxb5 {[%clk 0:00:21.3]} 29.
Qxb5 {[%clk 0:00:19.1]} 29... Qxb5 {[%clk 0:00:20.9]} 0-1

[Event "Late-Titled-Tuesday-Blitz-July-09-2024"]
[Site "Chess.com"]
[Date "2024.07.09"]
[Round "7"]
[White "Antek_Radzimski"]
[Black "szachmistrz2500"]
[Result "1-0"]
[WhiteElo "2564"]
[BlackElo "2416"]
[TimeControl "180+1"]
[EndTime "15:15:57 PDT"]
[Termination "Antek_Radzimski won by resignation"]

1. d4 {[%clk 0:03:00.9]} 1... Nf6 {[%clk 0:02:26]} 2. c4 {[%clk 0:03:00.3]} 2...
g6 {[%clk 0:02:25.7]} 3. Nc3 {[%clk 0:03:00.5]} 3... Bg7 {[%clk 0:02:25.5]} 4.
e4 {[%clk 0:03:01.1]} 4... d6 {[%clk 0:02:25.7]} 5. Be2 {[%clk 0:03:01.5]} 5...
c6 {[%clk 0:02:23.3]} 6. h4 {[%clk 0:02:59.9]} 6... h5 {[%clk 0:02:22.6]} 7. Bg5
{[%clk 0:02:59.5]} 7... Nbd7 {[%clk 0:02:22.4]} 8. Nf3 {[%clk 0:02:59.6]} 8...
a6 {[%clk 0:02:17.7]} 9. a3 {[%clk 0:02:49.9]} 9... e5 {[%clk 0:02:15.5]} 10.
dxe5 {[%clk 0:02:44.8]} 10... dxe5 {[%clk 0:02:11.5]} 11. Qc2 {[%clk 0:02:39.6]}
11... Qc7 {[%clk 0:02:09.6]} 12. Rd1 {[%clk 0:02:39.6]} 12... Nc5 {[%clk
0:02:07.4]} 13. b4 {[%clk 0:02:37.6]} 13... Ne6 {[%clk 0:02:06.6]} 14. c5 {[%clk
0:02:32.1]} 14... Ng4 {[%clk 0:01:54.7]} 15. O-O {[%clk 0:02:25.2]} 15... Nd4
{[%clk 0:01:48.2]} 16. Nxd4 {[%clk 0:02:04.4]} 16... exd4 {[%clk 0:01:48.1]} 17.
Bxg4 {[%clk 0:02:05]} 17... Bxg4 {[%clk 0:01:28.3]} 18. Ne2 {[%clk 0:01:58.7]}
18... Bxe2 {[%clk 0:01:26.6]} 19. Qxe2 {[%clk 0:01:57.7]} 19... O-O {[%clk
0:01:26.6]} 20. Qf3 {[%clk 0:01:54.4]} 20... Rfe8 {[%clk 0:01:21.5]} 21. Rfe1
{[%clk 0:01:50.1]} 21... a5 {[%clk 0:01:21.3]} 22. Bf4 {[%clk 0:01:48.4]} 22...
Qe7 {[%clk 0:01:20.7]} 23. g3 {[%clk 0:01:42.8]} 23... axb4 {[%clk 0:01:20.1]}
24. axb4 {[%clk 0:01:43.3]} 24... Ra2 {[%clk 0:01:11.2]} 25. e5 {[%clk
0:01:37.8]} 25... Rd8 {[%clk 0:01:04.9]} 26. e6 {[%clk 0:01:32.7]} 26... fxe6
{[%clk 0:00:47.3]} 27. Bg5 {[%clk 0:01:32.3]} 27... Qf8 {[%clk 0:00:45.3]} 28.
Bf4 {[%clk 0:01:11.9]} 28... Qf7 {[%clk 0:00:23.1]} 29. Qb3 {[%clk 0:01:07.8]}
29... Rda8 {[%clk 0:00:19.7]} 30. Rxe6 {[%clk 0:01:00.5]} 30... R2a3 {[%clk
0:00:19.5]} 31. Qc4 {[%clk 0:00:53.8]} 31... Rc3 {[%clk 0:00:19.3]} 32. Qe2
{[%clk 0:00:54.2]} 32... d3 {[%clk 0:00:18]} 33. Qe4 {[%clk 0:00:54.3]} 33...
Rd8 {[%clk 0:00:12]} 34. Rxg6 {[%clk 0:00:51.5]} 34... Re8 {[%clk 0:00:07.8]}
35. Rxg7+ {[%clk 0:00:45.2]} 35... Qxg7 {[%clk 0:00:06.8]} 36. Qxe8+ {[%clk
0:00:44.8]} 36... Kh7 {[%clk 0:00:02.9]} 37. Qxh5+ {[%clk 0:00:45.1]} 37... Kg8
{[%clk 0:00:03.2]} 38. Be5 {[%clk 0:00:43.6]} 1-0

[Event "Late-Titled-Tuesday-Blitz-July-09-2024"]
[Site "Chess.com"]
[Date "2024.07.09"]
[Round "7"]
[White "champ2005"]
[Black "MarcoRiehle"]
[Result "1-0"]
[WhiteElo "3050"]
[BlackElo "2859"]
[TimeControl "180+1"]
[EndTime "15:16:00 PDT"]
[Termination "champ2005 won by resignation"]

1. e4 {[%clk 0:03:00.9]} 1... e5 {[%clk 0:02:59.6]} 2. Nf3 {[%clk 0:03:00.1]}
2... Nf6 {[%clk 0:03:00.1]} 3. d3 {[%clk 0:02:58.8]} 3... Nc6 {[%clk 0:03:00]}
4. g3 {[%clk 0:02:58.8]} 4... Bc5 {[%clk 0:03:00.2]} 5. Bg2 {[%clk 0:02:58.3]}
5... d6 {[%clk 0:03:00.8]} 6. O-O {[%clk 0:02:51.1]} 6... h5 {[%clk 0:03:00.9]}
7. h3 {[%clk 0:02:46.3]} 7... h4 {[%clk 0:02:59.6]} 8. Nxh4 {[%clk 0:02:46.3]}
8... Rxh4 {[%clk 0:02:57.3]} 9. gxh4 {[%clk 0:02:47.2]} 9... Be6 {[%clk
0:02:56.1]} 10. c3 {[%clk 0:02:43.1]} 10... Qd7 {[%clk 0:02:56.2]} 11. Qf3
{[%clk 0:02:43.1]} 11... O-O-O {[%clk 0:02:55.8]} 12. b4 {[%clk 0:02:42.2]}
12... Bb6 {[%clk 0:02:55.6]} 13. a4 {[%clk 0:02:42.7]} 13... a5 {[%clk
0:02:55.7]} 14. bxa5 {[%clk 0:02:43]} 14... Nxa5 {[%clk 0:02:54.8]} 15. Bg5
{[%clk 0:02:34.3]} 15... Rh8 {[%clk 0:02:53.5]} 16. Nd2 {[%clk 0:02:33.2]} 16...
Nh5 {[%clk 0:02:49.4]} 17. Rfb1 {[%clk 0:02:31.7]} 17... f6 {[%clk 0:02:49.3]}
18. Be3 {[%clk 0:02:31.7]} 18... g5 {[%clk 0:02:48.4]} 19. d4 {[%clk 0:01:59.5]}
19... Nf4 {[%clk 0:02:45.5]} 20. d5 {[%clk 0:01:56]} 20... Bxh3 {[%clk
0:02:42.4]} 21. Bxf4 {[%clk 0:01:51.4]} 21... Bxg2 {[%clk 0:02:41.6]} 22. Kxg2
{[%clk 0:01:52.3]} 22... gxf4 {[%clk 0:02:33]} 23. Rh1 {[%clk 0:01:50.6]} 23...
Kb8 {[%clk 0:02:28.2]} 24. h5 {[%clk 0:01:47.6]} 24... f5 {[%clk 0:02:24.5]} 25.
h6 {[%clk 0:01:46.9]} 25... fxe4 {[%clk 0:02:23.5]} 26. Nxe4 {[%clk 0:01:47.8]}
26... Nb3 {[%clk 0:02:19.4]} 27. Rag1 {[%clk 0:01:37.6]} 27... Qxa4 {[%clk
0:02:12.7]} 28. h7 {[%clk 0:01:30.9]} 28... Qc4 {[%clk 0:01:56]} 29. Rh3 {[%clk
0:00:55.9]} 29... Qxd5 {[%clk 0:01:50.5]} 30. Ng5 {[%clk 0:00:55.9]} 30... Qc4
{[%clk 0:01:46.4]} 31. Qe4 {[%clk 0:00:50.3]} 31... Qc5 {[%clk 0:01:46.7]} 32.
Qe2 {[%clk 0:00:39.5]} 32... Qd5+ {[%clk 0:01:18.4]} 33. Kh2 {[%clk 0:00:32.6]}
33... Ka7 {[%clk 0:00:56.1]} 34. c4 {[%clk 0:00:28.7]} 34... Nd4 {[%clk
0:00:56.4]} 35. Ra1+ {[%clk 0:00:22.3]} 35... Ba5 {[%clk 0:00:55.4]} 36. cxd5
{[%clk 0:00:18.8]} 36... Nxe2 {[%clk 0:00:55.4]} 37. Rxa5+ {[%clk 0:00:19.4]}
37... Kb6 {[%clk 0:00:56.2]} 38. Ra2 {[%clk 0:00:17.7]} 38... Nd4 {[%clk
0:00:55.3]} 39. Nf7 {[%clk 0:00:17.2]} 39... Rxh7 {[%clk 0:00:55.8]} 40. Rxh7
{[%clk 0:00:18.1]} 40... Kc5 {[%clk 0:00:55.7]} 41. Ng5 {[%clk 0:00:18.5]} 41...
Kxd5 {[%clk 0:00:55.2]} 42. Rxc7 {[%clk 0:00:18.4]} 42... e4 {[%clk 0:00:55.8]}
43. Rxb7 {[%clk 0:00:16.6]} 43... Ke5 {[%clk 0:00:56.2]} 44. Ra5+ {[%clk
0:00:15.1]} 44... d5 {[%clk 0:00:56.8]} 45. Rd7 {[%clk 0:00:15.4]} 45... Kf6
{[%clk 0:00:57.2]} 46. Rdxd5 {[%clk 0:00:15.2]} 46... Nf3+ {[%clk 0:00:57]} 47.
Nxf3 {[%clk 0:00:15.4]} 47... exf3 {[%clk 0:00:57.9]} 48. Rf5+ {[%clk
0:00:15.7]} 1-0

[Event "Late-Titled-Tuesday-Blitz-July-09-2024"]
[Site "Chess.com"]
[Date "2024.07.09"]
[Round "7"]
[White "Defenstrator"]
[Black "zsoltkorpics"]
[Result "1-0"]
[WhiteElo "2394"]
[BlackElo "2489"]
[TimeControl "180+1"]
[EndTime "15:16:00 PDT"]
[Termination "Defenstrator won by checkmate"]

1. d4 {[%clk 0:03:00.9]} 1... Nf6 {[%clk 0:03:00.1]} 2. Bf4 {[%clk 0:03:01.3]}
2... d5 {[%clk 0:02:59.9]} 3. c4 {[%clk 0:03:01.2]} 3... dxc4 {[%clk 0:02:54.1]}
4. Nc3 {[%clk 0:03:00.3]} 4... e6 {[%clk 0:02:48.3]} 5. e4 {[%clk 0:02:58.4]}
5... Bb4 {[%clk 0:02:44.5]} 6. f3 {[%clk 0:02:57.3]} 6... Nc6 {[%clk 0:02:43]}
7. Be3 {[%clk 0:02:56.1]} 7... b5 {[%clk 0:02:26.8]} 8. a4 {[%clk 0:02:54.5]}
8... bxa4 {[%clk 0:02:13.6]} 9. Qxa4 {[%clk 0:02:43.4]} 9... Bd7 {[%clk
0:02:13.2]} 10. Qc2 {[%clk 0:02:37.8]} 10... e5 {[%clk 0:02:11.7]} 11. Ne2
{[%clk 0:02:17.4]} 11... exd4 {[%clk 0:01:53.9]} 12. Nxd4 {[%clk 0:02:17.6]}
12... Ne5 {[%clk 0:01:54.6]} 13. Be2 {[%clk 0:02:03.9]} 13... c5 {[%clk
0:01:54.4]} 14. Nf5 {[%clk 0:02:03.8]} 14... Bxf5 {[%clk 0:01:54.4]} 15. exf5
{[%clk 0:02:04.6]} 15... Nd3+ {[%clk 0:01:52.3]} 16. Kf1 {[%clk 0:01:59.5]}
16... O-O {[%clk 0:01:48.2]} 17. Rd1 {[%clk 0:01:59]} 17... Qe7 {[%clk
0:01:40.5]} 18. Bxd3 {[%clk 0:01:57.4]} 18... cxd3 {[%clk 0:01:35.4]} 19. Qxd3
{[%clk 0:01:50]} 19... Rad8 {[%clk 0:01:14]} 20. Qe2 {[%clk 0:01:48.9]} 20...
Bxc3 {[%clk 0:01:11.5]} 21. Rxd8 {[%clk 0:01:49.1]} 21... Rxd8 {[%clk
0:01:09.9]} 22. bxc3 {[%clk 0:01:49.3]} 22... Re8 {[%clk 0:00:18.1]} 23. Kf2
{[%clk 0:01:49.3]} 23... Nd5 {[%clk 0:00:18.8]} 24. Re1 {[%clk 0:01:48.9]} 24...
Qxe3+ {[%clk 0:00:11.1]} 25. Qxe3 {[%clk 0:01:49.3]} 25... Rxe3 {[%clk
0:00:11.7]} 26. Rxe3 {[%clk 0:01:49.4]} 26... Nxe3 {[%clk 0:00:12.6]} 27. Kxe3
{[%clk 0:01:50.3]} 27... a5 {[%clk 0:00:13.3]} 28. Kd3 {[%clk 0:01:47.4]} 28...
Kf8 {[%clk 0:00:11.4]} 29. Kc4 {[%clk 0:01:42.8]} 29... a4 {[%clk 0:00:11.5]}
30. Kd3 {[%clk 0:01:41.4]} 30... Ke7 {[%clk 0:00:12]} 31. Kc2 {[%clk 0:01:42]}
31... Kd6 {[%clk 0:00:11.1]} 32. Kb2 {[%clk 0:01:39.1]} 32... Kd5 {[%clk
0:00:09.9]} 33. g4 {[%clk 0:01:32.1]} 33... Kc4 {[%clk 0:00:10.5]} 34. g5 {[%clk
0:01:27.2]} 34... a3+ {[%clk 0:00:10.5]} 35. Kxa3 {[%clk 0:01:26.8]} 35... Kxc3
{[%clk 0:00:11]} 36. h4 {[%clk 0:01:25.3]} 36... Kd3 {[%clk 0:00:11]} 37. Kb2
{[%clk 0:01:24.2]} 37... Ke3 {[%clk 0:00:05]} 38. h5 {[%clk 0:01:19.7]} 38...
Kf4 {[%clk 0:00:04.3]} 39. g6 {[%clk 0:01:14.8]} 39... fxg6 {[%clk 0:00:03.9]}
40. h6 {[%clk 0:01:14.6]} 40... gxh6 {[%clk 0:00:02]} 41. f6 {[%clk 0:01:14.9]}
41... Kxf3 {[%clk 0:00:02.2]} 42. f7 {[%clk 0:01:15.5]} 42... g5 {[%clk
0:00:01.6]} 43. f8=Q+ {[%clk 0:01:16.4]} 43... Kg4 {[%clk 0:00:02]} 44. Qxh6
{[%clk 0:01:17.3]} 44... Kf4 {[%clk 0:00:02.1]} 45. Qxh7 {[%clk 0:01:17.9]}
45... g4 {[%clk 0:00:01.9]} 46. Kc3 {[%clk 0:01:18.7]} 46... Kf3 {[%clk
0:00:02.4]} 47. Kd2 {[%clk 0:01:19.1]} 47... g3 {[%clk 0:00:02.5]} 48. Qf5+
{[%clk 0:01:19.7]} 48... Kg2 {[%clk 0:00:03]} 49. Ke2 {[%clk 0:01:20.1]} 49...
Kh1 {[%clk 0:00:02.9]} 50. Qh3+ {[%clk 0:01:19.3]} 50... Kg1 {[%clk 0:00:03.8]}
51. Qxg3+ {[%clk 0:01:20.1]} 51... Kh1 {[%clk 0:00:04.6]} 52. Kf2 {[%clk
0:01:20.1]} 52... c4 {[%clk 0:00:05.5]} 53. Qg1# {[%clk 0:01:20.9]} 1-0

[Event "Late-Titled-Tuesday-Blitz-July-09-2024"]
[Site "Chess.com"]
[Date "2024.07.09"]
[Round "7"]
[White "RodriQA"]
[Black "Zurability"]
[Result "0-1"]
[WhiteElo "2444"]
[BlackElo "2655"]
[TimeControl "180+1"]
[EndTime "15:16:01 PDT"]
[Termination "Zurability won by resignation"]

1. b4 {[%clk 0:02:50]} 1... c6 {[%clk 0:02:53.5]} 2. Nf3 {[%clk 0:02:30.4]} 2...
d5 {[%clk 0:02:48.5]} 3. Bb2 {[%clk 0:02:29]} 3... a5 {[%clk 0:02:39]} 4. bxa5
{[%clk 0:02:26.4]} 4... Qxa5 {[%clk 0:02:33.6]} 5. e3 {[%clk 0:02:21.1]} 5...
Nf6 {[%clk 0:02:26.8]} 6. c4 {[%clk 0:02:20]} 6... e6 {[%clk 0:02:13.1]} 7. a3
{[%clk 0:02:11.9]} 7... Be7 {[%clk 0:02:10.8]} 8. Nc3 {[%clk 0:01:59.9]} 8...
O-O {[%clk 0:02:08.9]} 9. Qc2 {[%clk 0:01:51.5]} 9... Rd8 {[%clk 0:02:06.5]} 10.
Be2 {[%clk 0:01:34.7]} 10... dxc4 {[%clk 0:01:50.2]} 11. Bxc4 {[%clk 0:01:35.6]}
11... b6 {[%clk 0:01:47.2]} 12. O-O {[%clk 0:01:28.2]} 12... Bb7 {[%clk
0:01:47.5]} 13. d4 {[%clk 0:01:20.7]} 13... Nbd7 {[%clk 0:01:46.8]} 14. Rfd1
{[%clk 0:01:04.8]} 14... Qh5 {[%clk 0:01:38.6]} 15. e4 {[%clk 0:00:56.1]} 15...
Ra5 {[%clk 0:00:51.4]} 16. h3 {[%clk 0:00:38.1]} 16... Rda8 {[%clk 0:00:48.5]}
17. Qb3 {[%clk 0:00:37.7]} 17... Ba6 {[%clk 0:00:39.7]} 18. Nd2 {[%clk
0:00:29.5]} 18... Qg6 {[%clk 0:00:34.2]} 19. Qc2 {[%clk 0:00:12.4]} 19... Rg5
{[%clk 0:00:27.5]} 20. g3 {[%clk 0:00:10.1]} 20... Rxg3+ {[%clk 0:00:24.4]} 21.
fxg3 {[%clk 0:00:11]} 21... Qxg3+ {[%clk 0:00:24.9]} 22. Kf1 {[%clk 0:00:11.2]}
22... Qxh3+ {[%clk 0:00:24.4]} 23. Ke2 {[%clk 0:00:09.9]} 23... Qg2+ {[%clk
0:00:17.1]} 24. Ke1 {[%clk 0:00:05.6]} 24... Ng4 {[%clk 0:00:16.7]} 25. Nb3
{[%clk 0:00:01]} 25... Bh4+ {[%clk 0:00:12.7]} 0-1

[Event "Late-Titled-Tuesday-Blitz-July-09-2024"]
[Site "Chess.com"]
[Date "2024.07.09"]
[Round "7"]
[White "IMVadim"]
[Black "Navyblue1"]
[Result "1-0"]
[WhiteElo "2424"]
[BlackElo "2125"]
[TimeControl "180+1"]
[EndTime "15:16:01 PDT"]
[Termination "IMVadim won by resignation"]

1. e4 {[%clk 0:03:00.9]} 1... c5 {[%clk 0:02:54.6]} 2. Nf3 {[%clk 0:03:00.2]}
2... d6 {[%clk 0:02:51.2]} 3. d4 {[%clk 0:02:56.6]} 3... cxd4 {[%clk 0:02:52.1]}
4. Qxd4 {[%clk 0:02:56.7]} 4... a6 {[%clk 0:02:43.3]} 5. h3 {[%clk 0:02:55.4]}
5... Nc6 {[%clk 0:02:37.6]} 6. Qe3 {[%clk 0:02:55.2]} 6... g6 {[%clk 0:02:35.9]}
7. Be2 {[%clk 0:02:53.4]} 7... Bg7 {[%clk 0:02:34.5]} 8. O-O {[%clk 0:02:52.6]}
8... Nf6 {[%clk 0:02:32.1]} 9. c4 {[%clk 0:02:51.7]} 9... O-O {[%clk 0:02:30.3]}
10. Nc3 {[%clk 0:02:50.7]} 10... b6 {[%clk 0:02:11.2]} 11. Rb1 {[%clk
0:02:46.5]} 11... Bb7 {[%clk 0:02:06.4]} 12. b3 {[%clk 0:02:46.6]} 12... Rc8
{[%clk 0:01:58]} 13. Bb2 {[%clk 0:02:46.7]} 13... Nd7 {[%clk 0:01:54.3]} 14.
Rfd1 {[%clk 0:02:43.1]} 14... Re8 {[%clk 0:01:48.1]} 15. Ba1 {[%clk 0:02:41.4]}
15... a5 {[%clk 0:01:41]} 16. Rbc1 {[%clk 0:02:39.6]} 16... Nc5 {[%clk
0:01:33.8]} 17. Nd5 {[%clk 0:02:11.8]} 17... Bxa1 {[%clk 0:01:32.1]} 18. Rxa1
{[%clk 0:02:12.7]} 18... Nb4 {[%clk 0:01:25.5]} 19. Nxb4 {[%clk 0:02:01.1]}
19... axb4 {[%clk 0:01:26.4]} 20. Nd4 {[%clk 0:02:01.5]} 20... Bxe4 {[%clk
0:01:18.2]} 21. Qd2 {[%clk 0:01:56.9]} 21... Na6 {[%clk 0:01:01.7]} 22. Nb5
{[%clk 0:01:54.5]} 22... Qd7 {[%clk 0:00:53.7]} 23. Qd4 {[%clk 0:01:49.5]} 23...
Qb7 {[%clk 0:00:51]} 24. f3 {[%clk 0:01:46.8]} 24... Bc6 {[%clk 0:00:49]} 25. h4
{[%clk 0:01:45.2]} 25... Nc7 {[%clk 0:00:39.6]} 26. Nxc7 {[%clk 0:01:43.5]}
26... Qxc7 {[%clk 0:00:38.8]} 27. Qd2 {[%clk 0:01:43.8]} 27... Bb7 {[%clk
0:00:35.8]} 28. Qxb4 {[%clk 0:01:43.8]} 28... Qc5+ {[%clk 0:00:36]} 29. Qxc5
{[%clk 0:01:44.5]} 29... bxc5 {[%clk 0:00:36.1]} 30. a4 {[%clk 0:01:40.5]} 30...
Ba6 {[%clk 0:00:34.5]} 31. a5 {[%clk 0:01:40.7]} 31... Rb8 {[%clk 0:00:34.6]}
32. Rdb1 {[%clk 0:01:40.9]} 32... Rb4 {[%clk 0:00:32.2]} 33. Bd1 {[%clk
0:01:40.6]} 33... Reb8 {[%clk 0:00:31.1]} 34. Rc1 {[%clk 0:01:41.2]} 34... Kg7
{[%clk 0:00:26.9]} 35. Bc2 {[%clk 0:01:41.4]} 35... Kf6 {[%clk 0:00:17.9]} 36.
Re1 {[%clk 0:01:41.3]} 36... e6 {[%clk 0:00:17.7]} 37. Rad1 {[%clk 0:01:41.3]}
37... Ke7 {[%clk 0:00:17.2]} 38. h5 {[%clk 0:01:40]} 38... Bc8 {[%clk
0:00:15.3]} 39. Kf2 {[%clk 0:01:39.5]} 39... Ra8 {[%clk 0:00:15.4]} 40. Ra1
{[%clk 0:01:40.1]} 40... Ra6 {[%clk 0:00:14.3]} 41. f4 {[%clk 0:01:37.8]} 41...
Kf6 {[%clk 0:00:13.3]} 42. g4 {[%clk 0:01:35.8]} 42... h6 {[%clk 0:00:12.2]} 43.
hxg6 {[%clk 0:01:34.1]} 43... fxg6 {[%clk 0:00:12.8]} 44. Rh1 {[%clk 0:01:34.4]}
44... Kg7 {[%clk 0:00:13]} 45. g5 {[%clk 0:01:31.6]} 45... h5 {[%clk 0:00:12.4]}
46. Rhe1 {[%clk 0:01:27.8]} 46... Kf7 {[%clk 0:00:12.5]} 47. Re2 {[%clk
0:01:25.8]} 47... Bd7 {[%clk 0:00:12.4]} 48. Rd1 {[%clk 0:01:25.7]} 48... Bc8
{[%clk 0:00:10.8]} 49. Red2 {[%clk 0:01:26.1]} 49... Rxa5 {[%clk 0:00:11]} 50.
Rxd6 {[%clk 0:01:26]} 50... Ra2 {[%clk 0:00:10.6]} 51. R1d2 {[%clk 0:01:25.9]}
51... Rb8 {[%clk 0:00:09.8]} 52. Bxg6+ {[%clk 0:01:25.8]} 52... Kxg6 {[%clk
0:00:09.2]} 53. Rxa2 {[%clk 0:01:26.7]} 53... Kf5 {[%clk 0:00:08.2]} 54. Rd8
{[%clk 0:01:20.8]} 54... Kxf4 {[%clk 0:00:06.5]} 55. g6 {[%clk 0:01:20.7]} 55...
Kf5 {[%clk 0:00:05.6]} 56. g7 {[%clk 0:01:20.9]} 56... Kf6 {[%clk 0:00:06.3]}
57. g8=Q {[%clk 0:01:21.1]} 1-0